bitfinex/quotes_BTCUSD_20240729
["timestamp","ask_amount","ask_price","bid_price","bid_amount"]
[1722259663067,0.00084,69787.0,69786.0,1.61786225]
[1722259663268,0.00084,69787.0,69786.0,1.97785225]
[1722259663269,0.02332188,69787.0,69786.0,1.97785225]
[1722259663487,0.0631,69806.0,69804.0,0.3]
[1722259663710,0.03021332,69805.0,69804.0,0.3]
[1722259663862,0.0581,69806.0,69804.0,0.3]
[1722259664073,0.0581,69806.0,69804.0,0.443257]
[1722259664273,0.0581,69806.0,69805.0,0.143256]
[1722259664481,0.088313,69806.0,69797.0,0.2075]
[1722259664644,0.088313,69806.0,69789.0,0.1281]
[1722259664645,0.0774,69796.0,69795.0,0.3]
[1722259665019,0.08006,69796.0,69795.0,0.3]
[1722259665542,0.1103083,69796.0,69795.0,0.3]
[1722259666158,0.1380073,69796.0,69795.0,0.3]
[1722259666358,0.2303575,69796.0,69795.0,0.3]
[1722259666608,0.25181804,69796.0,69795.0,0.3]
[1722259666936,0.29326518,69796.0,69795.0,0.3]
[1722259667162,0.25033643,69796.0,69795.0,0.3]
[1722259667348,0.22338982,69796.0,69795.0,0.3]
[1722259667513,0.26632365,69796.0,69795.0,0.3]
[1722259667725,0.2727992,69796.0,69795.0,0.313]
[1722259668488,0.25031668,69796.0,69795.0,0.313]
[1722259669334,0.22006838,69796.0,69795.0,0.313]
[1722259669547,0.170659,69796.0,69795.0,0.313]
[1722259669766,0.24946719,69796.0,69795.0,0.313]
[1722259670174,0.2580077,69796.0,69795.0,0.313]
[1722259670376,0.32241253,69796.0,69795.0,0.313]
[1722259670961,0.46551192,69796.0,69795.0,0.013]
[1722259671157,0.56551192,69796.0,69795.0,0.013]
[1722259672004,0.5879975,69796.0,69795.0,0.013]
[1722259672212,0.55751748,69796.0,69795.0,0.013]
[1722259672414,0.49311265,69796.0,69795.0,0.025]
[1722259672886,0.49311265,69796.0,69795.0,0.013]
[1722259673208,0.61390107,69796.0,69795.0,0.013]
[1722259673388,1.18699907,69796.0,69795.0,0.013]
[1722259673592,1.18699907,69796.0,69783.0,0.23460547]
[1722259673593,0.14536,69784.0,69783.0,0.23460547]
[1722259673760,0.15136,69775.0,69774.0,0.000924]
[1722259673955,0.22738717,69775.0,69774.0,0.000924]
[1722259674364,0.22455468,69775.0,69774.0,0.000924]
[1722259674638,0.00266,69779.0,69774.0,0.000924]
[1722259674639,0.066,69779.0,69774.0,0.000924]
[1722259674845,0.066,69779.0,69776.0,0.07154355]
[1722259675678,0.06866,69779.0,69776.0,0.07154355]
[1722259675880,0.066,69779.0,69776.0,0.07154355]
[1722259676081,0.00157003,69795.0,69777.0,0.3]
[1722259676082,0.0605,69795.0,69777.0,0.3]
[1722259676312,0.00266,69786.0,69783.0,0.07154355]
[1722259676513,0.00266,69785.0,69783.0,0.07054355]
[1722259676874,0.1,69794.0,69777.0,0.3]
[1722259676875,0.00266,69783.0,69777.0,0.3]
[1722259677760,0.08006,69785.0,69777.0,0.443313]
[1722259677945,0.0774,69785.0,69777.0,0.3]
[1722259678302,0.0774,69785.0,69777.0,0.443313]
[1722259678548,0.0774,69785.0,69778.0,0.143311]
[1722259678697,0.0774,69785.0,69777.0,0.443313]
[1722259678897,0.08006,69785.0,69777.0,0.443313]
[1722259679097,0.00266,69783.0,69777.0,0.3]
[1722259679536,0.0665,69786.0,69781.0,0.07154355]
[1722259679736,0.0665,69786.0,69784.0,0.3]
[1722259679915,0.0633,69790.0,69784.0,0.3]
[1722259680122,0.00266,69786.0,69784.0,0.3]
[1722259680339,0.0825,69791.0,69784.0,0.3]
[1722259680340,0.06666,69785.0,69784.0,0.3]
[1722259680659,0.06666,69785.0,69774.0,0.000924]
[1722259680660,0.00266,69781.0,69774.0,0.300924]
[1722259680818,0.00266,69783.0,69774.0,0.300924]
[1722259681153,0.00266,69779.0,69774.0,0.300924]
[1722259681358,0.1438,69785.0,69774.0,0.300924]
[1722259681691,0.00266,69776.0,69774.0,0.300924]
[1722259682044,0.00266,69778.0,69774.0,0.300924]
[1722259682245,0.00266,69777.0,69774.0,0.300924]
[1722259682481,0.00266,69775.0,69774.0,0.300924]
[1722259682661,0.00266,69776.0,69774.0,0.300924]
[1722259682869,0.14756,69775.0,69774.0,0.300924]
[1722259683668,0.1449,69775.0,69774.0,0.300924]
[1722259684076,0.1449,69775.0,69774.0,0.307924]
[1722259684925,0.001,69777.0,69774.0,0.307924]
[1722259685084,0.00366,69777.0,69774.0,0.307924]
[1722259685284,0.001,69777.0,69774.0,0.307924]
[1722259686129,0.0618,69780.0,69774.0,0.300924]
[1722259686267,0.0618,69780.0,69775.0,0.07154355]
[1722259686876,0.0618,69780.0,69775.0,0.11888355]
[1722259687080,0.0618,69780.0,69775.0,0.07154355]
[1722259687485,0.0618,69780.0,69777.0,0.001]
[1722259688097,0.00266,69779.0,69775.0,0.07154355]
[1722259688541,0.06446,69780.0,69775.0,0.07154355]
[1722259688783,0.00266,69779.0,69774.0,0.300924]
[1722259688986,0.00266,69775.0,69774.0,0.300924]
[1722259689404,0.14916,69775.0,69774.0,0.000924]
[1722259689902,0.2553349,69775.0,69774.0,0.000924]
[1722259690314,0.39843429,69775.0,69774.0,0.000924]
[1722259690864,0.39854206,69775.0,69774.0,0.000924]
[1722259691672,0.42103254,69775.0,69774.0,0.000924]
[1722259691908,0.37793315,69775.0,69774.0,0.000924]
[1722259692109,0.35015962,69775.0,69774.0,0.000924]
[1722259692341,0.37897759,69775.0,69774.0,0.009924]
[1722259692526,0.35115962,69775.0,69774.0,0.009924]
[1722259692871,0.37896026,69775.0,69774.0,0.009924]
[1722259693245,0.5306062,69775.0,69774.0,0.009924]
[1722259693802,0.57340542,69775.0,69774.0,0.009924]
[1722259694005,0.5306062,69775.0,69774.0,0.009924]
[1722259694207,0.61606595,69775.0,69774.0,0.009924]
[1722259694394,0.59561294,69775.0,69774.0,0.009924]
[1722259694591,1.20563889,69775.0,69774.0,0.009924]
[1722259694835,1.09870074,69775.0,69774.0,0.009924]
[1722259695795,0.66874874,69775.0,69774.0,0.009924]
[1722259696060,0.64625826,69775.0,69774.0,0.009924]
[1722259696244,0.8964037,69775.0,69774.0,0.009924]
[1722259696445,1.07621026,69775.0,69774.0,0.009924]
[1722259696691,0.64625826,69775.0,69774.0,0.009924]
[1722259696858,0.68008317,69775.0,69774.0,0.009924]
[1722259697062,0.68008317,69775.0,69774.0,0.000924]
[1722259697063,0.67908317,69775.0,69774.0,0.000924]
[1722259697389,0.57810186,69775.0,69774.0,0.001924]
[1722259697572,0.66354479,69775.0,69774.0,0.001924]
[1722259697775,0.65754479,69775.0,69774.0,0.000924]
[1722259698000,0.65746773,69775.0,69774.0,0.000924]
[1722259698131,0.64309922,69775.0,69774.0,0.001924]
[1722259698337,0.57902672,69775.0,69774.0,0.001924]
[1722259699173,0.643083,69775.0,69774.0,0.001924]
[1722259699375,0.72234372,69775.0,69774.0,0.001924]
[1722259699774,1.00897872,69775.0,69774.0,0.001924]
[1722259699977,0.9119857,69775.0,69774.0,0.001924]
[1722259700180,1.45373809,69775.0,69774.0,0.001924]
[1722259700341,1.45373809,69775.0,69767.0,0.0165966]
[1722259700342,0.06476,69768.0,69767.0,0.0165966]
[1722259700594,0.28208715,69768.0,69767.0,0.0165966]
[1722259700794,0.88106992,69768.0,69767.0,0.0165966]
[1722259700998,0.91648449,69768.0,69767.0,0.0165966]
[1722259701201,1.24753392,69768.0,69767.0,0.0165966]
[1722259701426,1.55719792,69768.0,69767.0,0.0165966]
[1722259701865,1.65719792,69768.0,69767.0,0.0165966]
[1722259702061,1.66019792,69768.0,69767.0,0.0165966]
[1722259702296,1.15138518,69768.0,69767.0,0.0165966]
[1722259702502,1.06603392,69768.0,69767.0,0.0165966]
[1722259702706,1.35269792,69768.0,69767.0,0.0165966]
[1722259702919,1.38394448,69768.0,69767.0,0.0165966]
[1722259703123,1.44796175,69768.0,69767.0,0.0165966]
[1722259703345,1.77060848,69768.0,69767.0,0.0165966]
[1722259703543,1.77060848,69768.0,69765.0,0.008866]
[1722259703544,1.01034,69766.0,69765.0,0.008866]
[1722259703833,1.63391989,69766.0,69765.0,0.008866]
[1722259704038,1.38991647,69766.0,69765.0,0.008866]
[1722259704244,1.34724789,69766.0,69765.0,0.008866]
[1722259704370,0.55756789,69766.0,69765.0,0.008866]
[1722259704580,0.49284061,69766.0,69765.0,0.008866]
[1722259705506,0.49984061,69766.0,69765.0,0.008866]
[1722259705961,0.49284061,69766.0,69765.0,0.008866]
[1722259706274,0.49784061,69766.0,69765.0,0.008866]
[1722259706749,0.45995441,69766.0,69765.0,0.008866]
[1722259706892,0.49136877,69766.0,69765.0,0.008866]
[1722259707316,0.45995441,69766.0,69765.0,0.008866]
[1722259707553,0.49136992,69766.0,69765.0,0.008866]
[1722259707899,0.5138651,69766.0,69765.0,0.008866]
[1722259708103,0.6572011,69766.0,69765.0,0.008866]
[1722259708488,0.9438731,69766.0,69765.0,0.008866]
[1722259708887,0.92137792,69766.0,69765.0,0.008866]
[1722259709386,0.49136992,69766.0,69765.0,0.008866]
[1722259709756,0.63470592,69766.0,69765.0,0.008866]
[1722259709989,0.45995441,69766.0,69765.0,0.008866]
[1722259710191,0.49082868,69766.0,69765.0,0.008866]
[1722259710925,0.34772929,69766.0,69765.0,0.008866]
[1722259711149,0.27953427,69766.0,69765.0,0.008866]
[1722259711477,0.21412625,69766.0,69765.0,0.008866]
[1722259711627,0.24262047,69766.0,69765.0,0.008866]
[1722259712049,0.21412625,69766.0,69765.0,0.008866]
[1722259712227,0.24193681,69766.0,69765.0,0.008866]
[1722259712417,0.3850362,69766.0,69765.0,0.008866]
[1722259712616,0.6343722,69766.0,69765.0,0.008866]
[1722259712840,0.4910362,69766.0,69765.0,0.008866]
[1722259713105,0.4850362,69766.0,69765.0,0.008866]
[1722259713302,0.48468405,69766.0,69765.0,0.008866]
[1722259715426,0.50717847,69766.0,69765.0,0.008866]
[1722259715793,0.36407908,69766.0,69765.0,0.008866]
[1722259716214,0.36907908,69766.0,69765.0,0.008866]
[1722259716419,0.36900184,69766.0,69765.0,0.008866]
[1722259716866,0.34650742,69766.0,69765.0,0.008866]
[1722259717051,0.34632835,69766.0,69765.0,0.008866]
[1722259717952,0.48942774,69766.0,69765.0,0.008866]
[1722259719237,0.49542774,69766.0,69765.0,0.009866]
[1722259720260,0.51792228,69766.0,69765.0,0.009866]
[1722259720442,0.55889171,69766.0,69765.0,0.009866]
[1722259722548,0.6016574,69766.0,69765.0,0.009866]
[1722259722788,0.60139113,69766.0,69765.0,0.009866]
[1722259723514,0.70195916,69766.0,69765.0,0.009866]
[1722259723725,0.72445442,69766.0,69765.0,0.009866]
[1722259723930,0.78860638,69766.0,69765.0,0.009866]
[1722259724105,1.29779842,69766.0,69765.0,0.009866]
[1722259724285,1.40471835,69766.0,69765.0,0.009866]
[1722259724485,1.39779842,69766.0,69765.0,0.009866]
[1722259724714,1.42079842,69766.0,69765.0,0.009866]
[1722259724889,1.31833339,69766.0,69765.0,0.009866]
[1722259725095,1.34876281,69766.0,69765.0,0.009866]
[1722259726244,1.3683159,69766.0,69765.0,0.009866]
[1722259726396,1.34872792,69766.0,69765.0,0.009866]
[1722259726614,1.06205532,69766.0,69765.0,0.009866]
[1722259727215,0.55904732,69766.0,69765.0,0.009866]
[1722259728046,0.56903416,69766.0,69765.0,0.009866]
[1722259728273,0.33915133,69766.0,69765.0,0.009866]
[1722259728430,0.33649133,69766.0,69765.0,0.009866]
[1722259728629,0.27494793,69766.0,69765.0,0.009866]
[1722259728948,0.33915394,69766.0,69765.0,0.009866]
[1722259729153,0.48225333,69766.0,69765.0,0.009866]
[1722259729351,0.48214732,69766.0,69765.0,0.009866]
[1722259729589,0.50464216,69766.0,69765.0,0.009866]
[1722259729895,0.61165219,69766.0,69765.0,0.009866]
[1722259730461,0.50464216,69766.0,69765.0,0.009866]
[1722259731487,0.59029507,69766.0,69765.0,0.009866]
[1722259731733,0.50464216,69766.0,69765.0,0.009866]
[1722259732360,0.41075677,69766.0,69765.0,0.009866]
[1722259732743,0.48366571,69766.0,69765.0,0.009866]
[1722259733299,0.48100571,69766.0,69765.0,0.009866]
[1722259733648,0.17653275,69766.0,69765.0,0.009866]
[1722259733783,0.17653275,69766.0,69765.0,0.087866]
[1722259733784,0.10958926,69766.0,69765.0,0.087866]
[1722259734877,0.10958926,69766.0,69765.0,0.148366]
[1722259735389,0.10458926,69766.0,69765.0,0.148366]
[1722259735584,0.10658926,69766.0,69765.0,0.148366]
[1722259735801,0.06940254,69766.0,69765.0,0.147366]
[1722259736001,0.02449161,69766.0,69765.0,0.147366]
[1722259736199,0.02849161,69766.0,69765.0,0.97531939]
[1722259736423,0.02849161,69766.0,69765.0,1.36199539]
[1722259736744,0.006,69766.0,69765.0,1.36199539]
[1722259736997,0.006,69766.0,69765.0,1.64867139]
[1722259736998,0.002,69766.0,69765.0,1.64867139]
[1722259737195,0.00084,69775.0,69774.0,0.908997]
[1722259737400,0.00084,69775.0,69774.0,1.05209639]
[1722259737601,0.00084,69775.0,69774.0,1.14943639]
[1722259737797,0.00084,69775.0,69774.0,1.43607539]
[1722259738345,0.00084,69775.0,69774.0,1.43807539]
[1722259738882,0.00084,69775.0,69774.0,1.72471439]
[1722259739087,0.04288696,69805.0,69797.0,0.0018]
[1722259739313,0.00084,69806.0,69797.0,0.0018]
[1722259739536,0.00084,69806.0,69798.0,0.00286507]
[1722259739690,0.0035,69806.0,69798.0,0.14596446]
[1722259739892,0.00266,69798.0,69797.0,0.0018]
[1722259740130,0.00084,69806.0,69796.0,0.0767]
[1722259740131,0.00266,69797.0,69796.0,0.0767]
[1722259740370,0.02248076,69804.0,69788.0,0.23460547]
[1722259740371,0.00266,69790.0,69789.0,0.0767]
[1722259740993,0.0619,69800.0,69789.0,0.0767]
[1722259740994,0.00266,69793.0,69789.0,0.0767]
[1722259741366,0.00266,69794.0,69790.0,0.3]
[1722259741564,0.02248076,69804.0,69790.0,0.3]
[1722259741565,0.00266,69797.0,69790.0,0.3]
[1722259742109,0.00266,69793.0,69789.0,0.0767]
[1722259742284,0.02248076,69804.0,69789.0,0.0847]
[1722259742285,0.00366,69790.0,69789.0,0.0847]
[1722259742683,0.00366,69790.0,69789.0,0.008]
[1722259743458,0.001,69790.0,69789.0,0.008]
[1722259743702,0.00366,69790.0,69789.0,0.008]
[1722259745231,0.001,69790.0,69789.0,0.008]
[1722259745552,0.02348312,69790.0,69789.0,0.008]
[1722259745706,0.02248312,69790.0,69783.0,0.04734]
[1722259745915,0.02348312,69790.0,69785.0,0.143296]
[1722259746119,0.02348312,69790.0,69784.0,0.143298]
[1722259746331,0.02348312,69790.0,69783.0,0.54123939]
[1722259746655,0.02248312,69790.0,69783.0,0.54123939]
[1722259746854,0.00266,69794.0,69783.0,0.54123939]
[1722259746855,0.00266,69794.0,69783.0,0.35059939]
[1722259747010,0.00266,69793.0,69783.0,0.35059939]
[1722259747451,0.00266,69787.0,69783.0,0.14309939]
[1722259747671,0.00266,69787.0,69780.0,0.143306]
[1722259747920,0.00266,69783.0,69781.0,0.14309939]
[1722259748049,0.06707003,69804.0,69777.0,0.23460547]
[1722259748050,0.00266,69779.0,69777.0,0.23460547]
[1722259748250,0.0649,69789.0,69775.0,0.0803]
[1722259748251,0.00266,69777.0,69775.0,0.0803]
[1722259748477,0.00266,69766.0,69765.0,0.008866]
[1722259749552,0.00266,69767.0,69765.0,0.008866]
[1722259750099,0.0649,69774.0,69767.0,0.3]
[1722259750100,0.00266,69773.0,69767.0,0.3]
[1722259750311,0.00157003,69784.0,69767.0,0.3]
[1722259750312,0.00266,69775.0,69770.0,0.07154355]
[1722259750520,0.0654,69779.0,69770.0,0.07154355]
[1722259750521,0.00266,69776.0,69770.0,0.07154355]
[1722259750740,0.0654,69779.0,69767.0,0.3]
[1722259750741,0.00266,69773.0,69767.0,0.3]
[1722259751174,0.00266,69770.0,69767.0,0.3]
[1722259751364,0.00266,69768.0,69765.0,0.008866]
[1722259751601,0.00266,69766.0,69765.0,0.008866]
[1722259754482,0.06806,69766.0,69765.0,0.008866]
[1722259755238,0.00266,69766.0,69765.0,0.008866]
[1722259757806,0.02249231,69766.0,69765.0,0.008866]
[1722259758115,0.02249231,69766.0,69765.0,0.341244]
[1722259758533,0.02249231,69766.0,69765.0,0.62792]
[1722259758534,0.02349231,69766.0,69765.0,0.62792]
[1722259758722,0.02615231,69766.0,69765.0,0.150566]
[1722259758956,0.02349231,69766.0,69765.0,0.090166]
[1722259759677,0.001,69766.0,69765.0,0.090166]
[1722259759916,0.001,69766.0,69765.0,0.33326539]
[1722259760140,0.001,69766.0,69765.0,0.190166]
[1722259761521,0.00366,69766.0,69765.0,0.008866]
[1722259761721,0.00366,69766.0,69765.0,0.038866]
[1722259762518,0.001,69766.0,69765.0,0.038866]
[1722259763445,0.001,69766.0,69765.0,0.180166]
[1722259763641,0.001,69766.0,69765.0,0.46660339]
[1722259764008,0.001,69766.0,69765.0,0.32326539]
[1722259764945,0.00366,69766.0,69765.0,0.114366]
[1722259765171,0.001,69766.0,69765.0,0.114366]
[1722259766669,0.001,69766.0,69765.0,0.257704]
[1722259767088,0.001,69766.0,69765.0,0.68747939]
[1722259767294,0.001,69766.0,69765.0,0.40080339]
[1722259767639,0.02348873,69766.0,69765.0,0.40080339]
[1722259768017,0.001,69766.0,69765.0,0.25746539]
[1722259768376,0.001,69766.0,69765.0,0.40080339]
[1722259768567,0.001,69766.0,69765.0,0.68747939]
[1722259768774,0.001,69766.0,69765.0,0.97415539]
[1722259768977,0.001,69766.0,69765.0,1.12149539]
[1722259769214,0.001,69766.0,69765.0,1.12349539]
[1722259769411,0.001,69766.0,69765.0,1.12149539]
[1722259769969,0.001,69766.0,69765.0,0.73747939]
[1722259770143,0.001,69766.0,69765.0,0.40080339]
[1722259770317,0.001,69766.0,69765.0,0.68747939]
[1722259770643,0.001,69766.0,69765.0,0.25746539]
[1722259771139,0.00366,69766.0,69765.0,0.038866]
[1722259771532,0.001,69766.0,69765.0,0.038866]
[1722259772190,0.001,69766.0,69765.0,0.182204]
[1722259772371,0.001,69766.0,69765.0,0.038866]
[1722259772785,0.001,69766.0,69765.0,0.338866]
[1722259773008,0.001,69766.0,69765.0,0.482204]
[1722259773208,0.001,69766.0,69765.0,0.338866]
[1722259773535,0.001,69766.0,69765.0,0.62530339]
[1722259773718,0.001,69766.0,69765.0,0.91197939]
[1722259774085,0.001,69766.0,69765.0,1.04857939]
[1722259774255,0.002,69766.0,69765.0,1.34525539]
[1722259774624,0.002,69766.0,69765.0,1.39259539]
[1722259775026,0.002,69766.0,69765.0,1.05857939]
[1722259775469,0.002,69766.0,69765.0,1.34525539]
[1722259775643,0.02448862,69766.0,69765.0,1.34525539]
[1722259776418,0.002,69766.0,69765.0,1.34525539]
[1722259776646,0.002,69766.0,69765.0,1.05857939]
[1722259777443,0.002,69766.0,69765.0,0.77190339]
[1722259777669,0.002,69766.0,69765.0,1.05857939]
[1722259777841,0.002,69766.0,69765.0,0.77190339]
[1722259778043,0.002,69766.0,69765.0,0.71080339]
[1722259779673,0.0244887,69766.0,69765.0,0.71080339]
[1722259779871,0.0244887,69766.0,69765.0,0.49196539]
[1722259780461,0.0271487,69766.0,69765.0,0.048866]
[1722259780682,0.00466,69766.0,69765.0,0.048866]
[1722259781287,0.002,69766.0,69765.0,0.048866]
[1722259781488,0.00466,69766.0,69765.0,0.048866]
[1722259781691,0.002,69766.0,69765.0,0.048866]
[1722259781887,0.00466,69766.0,69765.0,0.048866]
[1722259783713,0.002,69766.0,69765.0,0.048866]
[1722259786440,0.002,69766.0,69765.0,0.47888]
[1722259786643,0.002,69766.0,69765.0,0.62197939]
[1722259787260,0.002,69766.0,69765.0,0.66931939]
[1722259787659,0.002,69766.0,69765.0,0.62197939]
[1722259787862,0.002,69766.0,69765.0,1.05599539]
[1722259788062,0.02448862,69766.0,69765.0,1.16139539]
[1722259788581,0.002,69766.0,69765.0,1.51157139]
[1722259788990,0.002,69766.0,69765.0,1.91734346]
[1722259789744,0.002,69766.0,69765.0,2.01583885]
[1722259789745,0.001,69766.0,69765.0,2.01583885]
[1722259789943,0.00405207,69786.0,69780.0,0.443306]
[1722259790147,0.06696,69787.0,69780.0,0.44309939]
[1722259790301,0.00266,69786.0,69780.0,0.44309939]
[1722259790501,0.00266,69784.0,69780.0,0.44309939]
[1722259791493,0.00266,69784.0,69780.0,0.58640439]
[1722259792056,0.00266,69784.0,69781.0,0.143305]
[1722259792057,0.02514398,69784.0,69781.0,0.143305]
[1722259792322,0.02514398,69784.0,69780.0,0.44309939]
[1722259792323,0.02248398,69784.0,69780.0,0.58640639]
[1722259792626,0.02514398,69784.0,69780.0,0.3]
[1722259793044,0.0643,69787.0,69783.0,0.1433]
[1722259793362,0.08096,69789.0,69783.0,0.28639939]
[1722259793363,0.001,69784.0,69783.0,0.28639939]
[1722259795705,0.001,69784.0,69780.0,0.311]
[1722259795706,0.00366,69784.0,69780.0,0.311]
[1722259796188,0.00366,69784.0,69780.0,0.454307]
[1722259796189,0.02614338,69784.0,69780.0,0.454307]
[1722259796488,0.00266,69782.0,69780.0,0.311]
[1722259796865,0.02614338,69784.0,69780.0,0.311]
[1722259797454,0.00366,69784.0,69780.0,0.311]
[1722259798021,0.00266,69785.0,69780.0,0.3]
[1722259798134,0.00084,69790.0,69785.0,0.04734]
[1722259798335,0.00084,69790.0,69784.0,0.286598]
[1722259798559,0.00084,69790.0,69786.0,0.143294]
[1722259798800,0.00084,69790.0,69787.0,0.00286557]
[1722259799017,0.00084,69790.0,69789.0,0.477207]
[1722259799154,0.00084,69790.0,69789.0,0.57296639]
[1722259799355,0.00084,69790.0,69789.0,0.85954439]
[1722259799806,0.00084,69790.0,69789.0,0.90688439]
[1722259800190,0.00084,69790.0,69789.0,0.85954439]
[1722259800354,0.00084,69790.0,69789.0,0.14309939]
[1722259800555,0.00084,69790.0,69788.0,0.44329]
[1722259800556,0.0035,69790.0,69788.0,0.3]
[1722259800814,0.02332133,69790.0,69789.0,0.716445]
[1722259800963,0.02332133,69790.0,69789.0,0.429867]
[1722259801161,0.02332133,69790.0,69789.0,1.003023]
[1722259801362,0.02332133,69790.0,69789.0,1.26500594]
[1722259801563,0.00084,69790.0,69789.0,1.53040594]
[1722259802604,0.00084,69806.0,69805.0,1.643092]
[1722259802829,0.00084,69806.0,69805.0,2.06603139]
[1722259803033,0.00084,69806.0,69805.0,2.43803139]
[1722259803236,0.00084,69806.0,69805.0,0.51509939]
[1722259803486,0.00084,69806.0,69789.0,0.008]
[1722259803487,0.00266,69796.0,69789.0,0.008]
[1722259803856,0.00266,69790.0,69789.0,0.008]
[1722259804095,0.00266,69791.0,69789.0,0.008]
[1722259804317,0.00266,69790.0,69789.0,0.008]
[1722259804530,0.17621581,69790.0,69789.0,0.008]
[1722259804790,0.20759545,69790.0,69789.0,0.008]
[1722259804965,0.55768184,69790.0,69789.0,0.008]
[1722259805177,0.55768184,69790.0,69761.0,0.63676131]
[1722259805178,0.14866,69766.0,69761.0,0.42926131]
[1722259805478,0.43509539,69766.0,69761.0,0.42926131]
[1722259805559,0.57038312,69766.0,69742.0,0.17426133]
[1722259805711,0.60554191,69766.0,69742.0,0.17426133]
[1722259806060,1.18554954,69766.0,69742.0,0.17426133]
[1722259806264,1.13554954,69766.0,69742.0,0.17426133]
[1722259806460,1.1080423,69766.0,69742.0,0.17426133]
[1722259806653,1.1187956,69766.0,69742.0,0.17426133]
[1722259806997,0.00266,69753.0,69742.0,0.17426133]
[1722259807203,0.06776,69753.0,69742.0,0.17426133]
[1722259807343,0.21908458,69753.0,69742.0,0.17426133]
[1722259807544,0.00266,69751.0,69742.0,0.17426133]
[1722259807744,0.06082877,69751.0,69739.0,0.42926131]
[1722259807966,0.06082877,69751.0,69738.0,0.3]
[1722259808359,0.00266,69751.0,69737.0,0.07154355]
[1722259808906,0.06082877,69751.0,69737.0,0.07154355]
[1722259809125,0.00266,69751.0,69737.0,0.07154355]
[1722259809289,0.00266,69751.0,69729.0,0.07154355]
[1722259809472,0.00266,69751.0,69724.0,0.3]
[1722259809473,0.28422816,69751.0,69724.0,0.3]
[1722259809674,0.28422816,69751.0,69727.0,0.3]
[1722259809675,0.46461496,69751.0,69727.0,0.3]
[1722259809900,0.54981319,69751.0,69728.0,0.07154355]
[1722259810100,0.61356762,69751.0,69727.0,0.3]
[1722259810674,0.47020062,69751.0,69728.0,0.07154355]
[1722259810892,0.39881382,69751.0,69750.0,0.00137]
[1722259811419,0.54218082,69751.0,69750.0,0.00137]
[1722259811643,0.39881382,69751.0,69750.0,0.00137]
[1722259813008,0.47842639,69751.0,69750.0,0.00137]
[1722259813183,0.4221091,69751.0,69750.0,0.00137]
[1722259813347,0.5654761,69751.0,69750.0,0.00137]
[1722259813557,0.56532086,69751.0,69750.0,0.00137]
[1722259813891,1.16628914,69751.0,69750.0,0.00137]
[1722259814258,0.44945414,69751.0,69750.0,0.00137]
[1722259814497,0.59282114,69751.0,69750.0,0.00137]
[1722259814670,1.16628914,69751.0,69750.0,0.00137]
[1722259814840,1.21628914,69751.0,69750.0,0.00137]
[1722259815241,1.26628914,69751.0,69750.0,0.00137]
[1722259815675,1.26582505,69751.0,69750.0,0.00137]
[1722259815885,1.27442285,69751.0,69750.0,0.00137]
[1722259816098,0.26448869,69751.0,69750.0,0.00137]
[1722259816314,0.33662942,69751.0,69750.0,0.00137]
[1722259816513,0.33455939,69751.0,69750.0,0.00137]
[1722259817124,0.33455939,69751.0,69750.0,0.00037]
[1722259817125,0.3480593,69751.0,69750.0,0.00037]
[1722259817539,0.3480593,69751.0,69750.0,0.00137]
[1722259817540,0.03915991,69751.0,69750.0,0.00137]
[1722259817739,0.03649991,69751.0,69750.0,0.00137]
[1722259817940,0.03915991,69751.0,69750.0,0.00137]
[1722259818145,0.02515991,69751.0,69750.0,0.00037]
[1722259818836,0.04615991,69751.0,69750.0,0.00137]
[1722259818959,0.1892593,69751.0,69750.0,0.00137]
[1722259819163,0.1892593,69751.0,69750.0,0.00037]
[1722259819164,0.1822593,69751.0,69750.0,0.00037]
[1722259819371,0.42719633,69751.0,69750.0,0.00037]
[1722259819570,0.43012933,69751.0,69750.0,0.00137]
[1722259819770,0.40762942,69751.0,69750.0,0.00137]
[1722259820171,0.40062942,69751.0,69750.0,0.00037]
[1722259820371,0.54399642,69751.0,69750.0,0.00037]
[1722259820801,0.88473042,69751.0,69750.0,0.00037]
[1722259820976,0.59799642,69751.0,69750.0,0.00037]
[1722259821182,1.17146442,69751.0,69750.0,0.00037]
[1722259821546,1.41767062,69751.0,69750.0,0.00037]
[1722259821749,0.74420262,69751.0,69750.0,0.00037]
[1722259821953,1.34017137,69751.0,69750.0,0.00037]
[1722259822289,1.87000476,69751.0,69750.0,0.00037]
[1722259822489,1.72690537,69751.0,69750.0,0.00022219]
[1722259822736,1.72290537,69751.0,69750.0,0.00022219]
[1722259822888,1.70860194,69751.0,69750.0,0.00022219]
[1722259823097,1.71460194,69751.0,69750.0,0.00022219]
[1722259823296,1.33786794,69751.0,69750.0,0.00122219]
[1722259823500,0.70839994,69751.0,69750.0,0.00122219]
[1722259823701,0.57903294,69751.0,69750.0,0.00122219]
[1722259823901,0.4974805,69751.0,69750.0,0.00122219]
[1722259824245,0.31756014,69751.0,69750.0,0.00122219]
[1722259824545,0.29905939,69751.0,69750.0,0.00022219]
[1722259824753,0.15596,69751.0,69750.0,0.00022219]
[1722259824985,0.15596,69751.0,69750.0,0.00122219]
[1722259824986,0.16996,69751.0,69750.0,0.00122219]
[1722259825318,0.31305939,69751.0,69750.0,0.00122219]
[1722259825561,0.55642639,69751.0,69750.0,0.00122219]
[1722259825758,0.70204631,69751.0,69750.0,0.00122219]
[1722259825959,0.70228254,69751.0,69750.0,0.00122219]
[1722259826205,1.06056009,69751.0,69750.0,0.00122219]
[1722259826391,1.42575054,69751.0,69750.0,0.00122219]
[1722259826597,1.32575054,69751.0,69750.0,0.00122219]
[1722259827029,1.32579639,69751.0,69750.0,0.00122219]
[1722259827185,1.42579639,69751.0,69750.0,0.00122219]
[1722259827598,1.32579639,69751.0,69750.0,0.00122219]
[1722259827779,1.6560979,69751.0,69750.0,0.00122219]
[1722259828367,1.59169649,69751.0,69750.0,0.00122219]
[1722259828567,1.65620259,69751.0,69750.0,0.00122219]
[1722259829175,1.64220259,69751.0,69750.0,0.00022219]